bitfinex-derivatives/quotes_BNBF0:USTF0_20241230
["timestamp","ask_amount","ask_price","bid_price","bid_amount"]
[1735528077497,0.2862254,698.75,697.46,1.07450111]
[1735528078805,0.2862254,698.75,697.45,1.07450111]
[1735528079706,0.2862254,698.75,697.37,1.07450111]
[1735528080508,0.2862254,698.75,697.34,0.28680414]
[1735528081409,0.2862254,698.75,697.69,1.07450111]
[1735528082703,0.2862254,698.75,697.47,1.07450111]
[1735528084811,0.2862254,698.75,697.5,1.07450111]
[1735528085712,0.2862254,698.75,697.56,1.07450111]
[1735528086912,0.2862254,698.75,697.57,1.07450111]
[1735528088409,0.2862254,698.75,697.51,1.07450111]
[1735528089609,0.2862254,698.75,697.49,1.07450111]
[1735528090913,0.2862254,698.75,697.58,1.07450111]
[1735528091817,0.2862254,698.75,697.63,1.07450111]
[1735528092909,0.2862254,698.75,691.71,8.542401]
[1735528092910,0.2862254,698.75,697.59,1.07450111]
[1735528096322,0.2862254,698.75,697.58,1.07450111]
[1735528098626,0.2862254,698.75,697.57,1.07450111]
[1735528099623,0.2862254,698.75,697.56,2.98764417]
[1735528099824,0.2862254,698.75,697.57,1.91314306]
[1735528100021,0.2862254,698.75,697.57,3.54191044]
[1735528100225,0.2862254,698.75,697.58,1.91314306]
[1735528100428,0.2862254,698.75,697.57,1.91314306]
[1735528100822,0.2862254,698.75,697.17,2.19377311]
[1735528100823,0.2862254,698.75,697.59,1.07450111]
[1735528102225,0.2862254,698.75,697.58,1.07450111]
[1735528103327,0.2862254,698.75,697.04,2.19377311]
[1735528103328,0.2862254,698.75,697.37,1.07450111]
[1735528104332,0.2862254,698.75,697.41,1.07450111]
[1735528105532,0.2862254,698.75,697.33,1.07450111]
[1735528106633,0.2862254,698.75,697.52,1.07450111]
[1735528109032,0.2862254,698.75,697.39,1.07450111]
[1735528109033,0.2862254,698.75,697.53,1.07450111]
[1735528110133,0.2862254,698.75,697.52,1.07450111]
[1735528111231,0.2862254,698.75,697.47,1.07450111]
[1735528112230,0.2862254,698.75,697.49,1.07450111]
[1735528113336,0.2862254,698.75,697.53,1.07450111]
[1735528114738,0.2862254,698.75,697.65,1.07450111]
[1735528115737,0.2862254,698.75,697.34,0.28680414]
[1735528115738,0.2862254,698.75,697.62,1.07450111]
[1735528116440,0.2862254,698.75,697.5,1.07450111]
[1735528116441,0.2862254,698.75,697.63,1.07450111]
[1735528117338,0.2862254,698.75,697.59,1.07450111]
[1735528118340,0.2862254,698.75,697.56,1.07450111]
[1735528119943,0.2862254,698.75,697.52,1.07450111]
[1735528120743,1.07012201,699.0,697.67,1.07450111]
[1735528120942,0.26351438,698.99,697.67,1.07450111]
[1735528121643,1.33363639,698.99,697.68,1.07450111]
[1735528121943,0.26351438,698.98,697.68,1.07450111]
[1735528122341,1.07012201,698.97,697.67,1.07450111]
[1735528122543,0.26351438,698.96,697.67,1.07450111]
[1735528122745,1.07012201,698.97,697.67,1.07450111]
[1735528123044,0.26351835,698.96,697.67,1.07450111]
[1735528123245,1.07012201,698.97,697.67,1.07450111]
[1735528123443,1.07012201,699.01,697.59,1.07450111]
[1735528123746,0.26351911,699.0,697.59,1.07450111]
[1735528124544,0.26351911,699.0,697.57,1.07450111]
[1735528124742,0.26351911,698.99,697.57,1.07450111]
[1735528124945,1.07012201,699.03,697.57,1.07450111]
[1735528125141,0.26352045,699.02,697.57,1.07450111]
[1735528125343,0.26351361,699.01,697.57,1.07450111]
[1735528125641,0.26351361,699.0,697.56,1.07450111]
[1735528125842,1.07012201,699.02,697.56,1.07450111]
[1735528126749,0.26351028,699.01,697.56,1.07450111]
[1735528127250,0.26351028,699.01,697.61,1.07450111]
[1735528127549,0.26351028,699.0,697.61,1.07450111]
[1735528127744,1.07012201,699.05,697.61,1.07450111]
[1735528127949,1.07012201,699.05,697.21,2.19377311]
[1735528127950,1.07012201,699.01,697.58,1.07450111]
[1735528128744,0.28612712,698.99,697.58,1.07450111]
[1735528130051,0.28612712,698.99,697.23,1.07450111]
[1735528130752,0.26359222,698.98,697.23,1.07450111]
[1735528131150,0.26359222,698.98,696.69,2.19377311]
[1735528131151,0.26359222,698.98,697.21,1.07450111]
[1735528131552,0.2861394,698.96,697.21,1.07450111]
[1735528132351,0.2861394,698.96,697.16,1.07450111]
[1735528133455,0.2861394,698.96,697.15,1.07450111]
[1735528134656,0.2861394,698.96,697.19,1.07450111]
[1735528136953,0.2861394,698.96,697.17,1.07450111]
[1735528137851,0.2861394,698.96,697.14,1.07450111]
[1735528139055,1.07012201,698.92,697.27,1.07450111]
[1735528139352,0.28616397,698.9,697.27,1.07450111]
[1735528140054,1.35628598,698.9,697.27,1.07450111]
[1735528140257,1.35628598,698.9,697.22,1.91675397]
[1735528140453,1.35628598,698.9,697.22,1.91663841]
[1735528140653,1.35628598,698.9,697.21,1.07450111]
[1735528141158,0.28616397,698.9,697.14,3.54401639]
[1735528141457,0.28616397,698.9,697.15,3.54401639]
[1735528141658,0.28616397,698.9,697.11,1.07450111]
[1735528141659,0.28616397,698.9,697.16,1.91641389]
[1735528141852,0.28616397,698.9,697.12,3.54382126]
[1735528142059,0.28616397,698.9,697.16,1.07450111]
[1735528142861,0.28616397,698.9,697.16,2.990915]
[1735528143160,0.28616397,698.9,697.17,1.91641389]
[1735528143361,0.28616397,698.9,697.16,1.07450111]
[1735528144456,0.28616397,698.9,697.11,1.07450111]
[1735528145655,0.28616397,698.9,697.0,1.07450111]
[1735528145656,0.28616397,698.9,697.1,1.07450111]
[1735528146962,0.28616397,698.9,697.02,1.07450111]
[1735528147760,0.28616397,698.9,696.97,1.07450111]
[1735528148958,0.28616397,698.9,696.98,1.07450111]
[1735528150264,0.28616397,698.9,696.71,1.07450111]
[1735528151661,0.28616397,698.9,696.37,6.23678516]
[1735528151662,0.28616397,698.9,696.74,1.07450111]
[1735528152572,0.28616397,698.9,696.7,1.07450111]
[1735528153765,1.35628598,698.9,696.68,1.07450111]
[1735528154864,1.35628598,698.9,696.52,1.91407169]
[1735528154865,1.07012201,698.82,696.66,1.07450111]
[1735528155067,0.28623769,698.72,696.66,1.07450111]
[1735528156271,0.28623769,698.72,696.63,1.07450111]
[1735528156972,0.28623769,698.72,696.63,4.61253706]
[1735528157167,0.28623769,698.72,696.64,3.53803595]
[1735528157366,0.28623769,698.72,696.65,2.69357735]
[1735528157567,0.28623769,698.72,696.74,1.07450111]
[1735528158974,0.28623769,698.72,696.81,1.07450111]
[1735528159674,0.28623769,698.72,696.8,1.07450111]
[1735528160575,0.28623769,698.72,696.69,1.07450111]
[1735528160576,0.28623769,698.72,696.83,1.07450111]
[1735528161577,0.28623769,698.72,696.86,1.07450111]
[1735528162170,0.28623769,698.72,696.86,4.60993352]
[1735528162376,0.28623769,698.72,696.87,3.53543241]
[1735528162578,1.07012201,698.7,696.96,1.07450111]
[1735528163175,0.28625407,698.68,696.96,1.07450111]
[1735528163476,0.28625407,698.68,696.86,1.07450111]
[1735528164277,0.28625407,698.68,696.96,1.07450111]
[1735528164878,0.28625407,698.68,696.95,1.07450111]
[1735528166180,0.28625407,698.68,696.94,1.07450111]
[1735528166979,0.28625407,698.68,696.91,1.07450111]
[1735528167779,0.28625407,698.68,696.93,1.07450111]
[1735528169477,1.35637608,698.68,696.92,1.07450111]
[1735528170678,1.07012201,698.67,696.92,1.07450111]
[1735528171083,0.28626637,698.65,696.92,1.07450111]
[1735528171682,1.07012201,698.62,696.92,1.07450111]
[1735528171875,0.28628685,698.6,696.92,1.07450111]
[1735528172785,0.28628685,698.6,696.74,3.52948671]
[1735528172786,0.28628685,698.6,696.95,1.07450111]
[1735528173687,1.07012201,698.53,697.08,1.07450111]
[1735528173887,0.28632374,698.51,697.08,1.07450111]
[1735528174483,0.28632374,698.51,696.84,3.52948671]
[1735528174484,0.28632374,698.51,697.13,1.07450111]
[1735528175788,0.28632374,698.51,697.15,1.07450111]
[1735528176890,0.28632374,698.51,697.11,1.07450111]
[1735528178386,0.28632374,698.51,697.14,1.07450111]
[1735528179592,0.28632374,698.51,697.15,1.07450111]
[1735528180488,0.28632374,698.51,697.16,1.07450111]
[1735528181690,0.28632374,698.51,697.29,1.07450111]
[1735528183895,0.28632374,698.51,697.32,1.07450111]
[1735528184691,0.28632374,698.51,697.31,1.07450111]
[1735528185797,0.28632374,698.51,697.25,1.07450111]
[1735528186493,0.28632374,698.51,697.27,1.07450111]
[1735528187200,0.28632374,698.51,697.26,1.07450111]
[1735528189709,0.28632374,698.51,697.25,1.07450111]
[1735528190798,0.28632374,698.51,697.31,1.07450111]
[1735528192698,0.28632374,698.51,697.3,1.07450111]
[1735528192897,0.28632374,698.51,697.3,2.69933927]
[1735528193097,0.28632374,698.51,697.31,2.69560748]
[1735528193298,0.28632374,698.51,697.32,3.53581877]
[1735528193598,0.28632374,698.51,697.33,2.69560748]
[1735528193899,0.28632374,698.51,697.38,1.07450111]
[1735528194702,0.28632374,698.51,697.38,2.98548172]
[1735528195002,0.28632374,698.51,697.39,1.91098061]
[1735528195498,0.28632374,698.51,697.31,1.62424363]
[1735528195795,0.28632374,698.51,697.31,2.69473113]
[1735528195999,0.28632374,698.51,697.32,3.53522424]
[1735528196199,0.28632374,698.51,697.33,3.53522424]
[1735528196396,0.28632374,698.51,697.33,2.69473113]
[1735528196694,0.28632374,698.51,697.29,1.07450111]
[1735528197702,0.28632374,698.51,697.14,1.07450111]
[1735528198702,0.28632374,698.51,697.22,1.07450111]
[1735528200005,0.28632374,698.51,697.23,1.07450111]
[1735528200706,0.28632374,698.51,697.21,1.07450111]
[1735528201005,0.28632374,698.51,697.21,4.61106844]
[1735528201304,0.28632374,698.51,697.22,3.53656733]
[1735528201503,0.28632374,698.51,697.22,6.22811856]
[1735528201704,0.28632374,698.51,697.23,3.53656733]
[1735528201905,0.28632374,698.51,697.37,1.07450111]
[1735528202803,0.28632374,698.51,697.47,1.07450111]
[1735528203806,0.28632374,698.51,697.48,1.07450111]
[1735528204700,0.28632374,698.51,697.53,1.07450111]
[1735528205701,0.28632374,698.51,697.54,1.07450111]
[1735528206810,0.28632374,698.51,697.56,1.07450111]
[1735528208808,0.28632374,698.51,697.61,1.07450111]
[1735528210109,0.28632374,698.51,697.58,3.53128461]
[1735528210508,0.28632374,698.51,697.59,2.6852787]
[1735528210808,0.28632374,698.51,697.6,3.53128461]
[1735528211006,0.28632374,698.51,697.61,2.6852787]
[1735528211206,0.28632374,698.51,697.62,3.53128461]
[1735528211608,0.28632374,698.51,697.64,1.07450111]
[1735528212007,0.28632374,698.51,697.64,4.60578572]
[1735528212208,0.28632374,698.51,697.65,6.21656331]
[1735528212406,0.28632374,698.51,697.66,3.53128461]
[1735528213106,0.28632374,698.51,697.67,1.91223651]
[1735528213306,0.28632374,698.51,697.64,1.91223651]
[1735528213509,0.28632374,698.51,697.64,3.52965614]
[1735528214006,0.28632374,698.51,697.65,3.52965614]
[1735528214202,0.28632374,698.51,697.66,1.91223651]
[1735528214508,0.28632374,698.51,697.59,3.53003882]
[1735528215708,0.28632374,698.51,697.59,4.60453993]
[1735528215908,0.28632374,698.51,697.6,3.53003882]
[1735528216109,0.28632374,698.51,697.6,1.91223651]
[1735528216500,0.28632374,698.51,697.6,1.61739213]
[1735528216704,0.28632374,698.51,697.6,4.60412975]
[1735528216906,0.28632374,698.51,697.61,3.52962864]
[1735528218009,0.28632374,698.51,697.73,1.07450111]
[1735528219208,0.28632374,698.51,697.74,1.07450111]
[1735528220005,0.28632374,698.51,697.73,1.07450111]
[1735528220810,0.28632374,698.51,697.74,1.07450111]
[1735528224108,0.28632374,698.51,697.76,1.07450111]
[1735528225709,0.28632374,698.51,697.71,1.07450111]
[1735528226711,0.28632374,698.51,697.61,1.07450111]
[1735528227817,0.28632374,698.51,697.65,1.07450111]
[1735528229019,0.28632374,698.51,697.44,1.61839419]
[1735528229020,0.28632374,698.51,697.66,1.07450111]
[1735528230021,0.28632374,698.51,697.63,1.07450111]
[1735528231721,0.28632374,698.51,697.64,1.07450111]
[1735528232921,0.28632374,698.51,697.68,1.07450111]
[1735528235120,0.28632374,698.51,697.69,1.07450111]
[1735528236224,0.28632374,698.51,697.63,1.07450111]
[1735528239520,0.28632374,698.51,697.72,1.07450111]
[1735528240623,0.28632374,698.51,697.4,1.62581644]
[1735528240624,0.28632374,698.51,697.68,1.07450111]
[1735528241425,0.28632374,698.51,697.73,1.07450111]
[1735528242626,0.28632374,698.51,697.62,1.07450111]
[1735528244026,0.28632374,698.51,697.19,1.07450111]
[1735528245527,0.28632374,698.51,697.16,1.07450111]
[1735528247121,0.28632374,698.51,697.2,1.07450111]
[1735528248132,0.28632374,698.51,697.11,1.07450111]
[1735528249432,0.28632374,698.51,697.09,1.07450111]
[1735528250725,0.28632374,698.51,697.07,1.07450111]
[1735528252131,0.28632374,698.51,697.08,1.07450111]
[1735528253032,0.28632374,698.51,697.39,1.07450111]
[1735528256133,0.28632374,698.51,697.27,1.07450111]
[1735528257134,0.28632374,698.51,697.26,1.07450111]
[1735528258135,0.28632374,698.51,697.3,1.07450111]
[1735528258930,0.28632374,698.51,697.32,1.07450111]
[1735528259935,0.28632374,698.51,697.34,1.07450111]
[1735528260834,0.28632374,698.51,697.35,1.07450111]
[1735528261634,0.28632374,698.51,697.2,1.07450111]
[1735528262935,0.28632374,698.51,697.19,1.07450111]
[1735528264836,0.28632374,698.51,697.18,1.91563238]
[1735528265136,0.28632374,698.51,697.17,3.54167403]
[1735528265631,0.28632374,698.51,697.18,2.69754071]
[1735528265837,0.28632374,698.51,697.19,3.54167403]
[1735528266137,0.28632374,698.51,697.33,1.07450111]
[1735528266835,0.28632374,698.51,697.36,1.07450111]
[1735528268935,0.28632374,698.51,697.39,1.07450111]
[1735528269535,0.28632374,698.51,697.39,4.61617514]
[1735528269733,0.28632374,698.51,697.4,3.54167403]
[1735528269938,0.28632374,698.51,697.4,1.91563238]
[1735528270139,0.28632374,698.51,697.43,1.07450111]
[1735528271239,0.28632374,698.51,697.39,1.07450111]
[1735528272342,0.28632374,698.51,696.82,1.07450111]
[1735528273637,0.28632374,698.51,696.79,1.07450111]
[1735528274439,0.28632374,698.51,696.09,2.19377311]
[1735528274440,0.28632374,698.51,696.65,1.07450111]
[1735528275545,0.28632374,698.51,696.66,0.28708408]
[1735528276445,0.28632374,698.51,696.84,1.07450111]
[1735528277142,0.28632374,698.51,696.85,1.07450111]
[1735528278348,0.28632374,698.51,696.66,1.36158519]
[1735528278349,0.28632374,698.51,696.97,1.07450111]
[1735528280444,0.28632374,698.51,696.68,1.62588286]
[1735528280445,0.28632374,698.51,696.99,1.07450111]
[1735528281553,0.28632374,698.51,697.35,1.07450111]
[1735528282251,0.28632374,698.51,697.45,1.07450111]
[1735528283252,0.28632374,698.51,697.32,1.07450111]
[1735528284451,0.28632374,698.51,697.26,1.07450111]
[1735528285350,0.28632374,698.51,697.27,1.07450111]
[1735528286553,0.28632374,698.51,696.65,2.19377311]
[1735528286554,0.28632374,698.51,697.31,1.07450111]
[1735528287456,0.28632374,698.51,697.32,1.07450111]
[1735528288356,0.28632374,698.51,697.31,1.07450111]
[1735528289356,0.28632374,698.51,697.25,1.07450111]
[1735528290251,0.28632374,698.51,697.22,1.07450111]
[1735528291351,0.28632374,698.51,697.23,1.07450111]
[1735528292556,0.28632374,698.51,697.07,1.07450111]
[1735528292557,0.28632374,698.51,697.2,1.07450111]
[1735528293557,0.28632374,698.51,697.57,1.07450111]
[1735528294658,0.28632374,698.51,697.56,1.07450111]
[1735528296562,0.28632374,698.51,695.86,2.92803106]
[1735528296563,0.28632374,698.51,697.54,1.07450111]
[1735528297562,0.28632374,698.51,697.41,1.07450111]
[1735528299062,0.28632374,698.51,697.4,1.07450111]
[1735528300258,0.28632374,698.51,697.34,1.07450111]
[1735528301260,0.28632374,698.51,690.38,8.55106775]
[1735528301261,0.28632374,698.51,697.32,1.07450111]
[1735528302565,0.28632374,698.51,697.38,1.07450111]
[1735528303665,0.28632374,698.51,697.37,1.88394156]
[1735528303861,0.28632374,698.51,697.36,1.07450111]
[1735528305664,0.28632374,698.51,697.42,1.07450111]
[1735528307466,0.28632374,698.51,697.42,7.2897598]
[1735528307669,0.28632374,698.51,697.43,3.51284413]
[1735528308169,0.28632374,698.51,697.55,1.07450111]
[1735528309963,0.28632374,698.51,697.57,1.07450111]
[1735528311071,0.28632374,698.51,697.64,1.07450111]
[1735528312268,0.28632374,698.51,697.66,1.07450111]
[1735528313173,0.28632374,698.51,697.68,1.07450111]
[1735528314374,0.28632374,698.51,697.7,1.07450111]
[1735528315574,0.28632374,698.51,697.49,1.07450111]
[1735528317472,0.28632374,698.51,697.1,1.28940133]
[1735528317473,0.28632374,698.51,697.48,1.07450111]
[1735528318271,0.28632374,698.51,697.46,1.07450111]
[1735528320073,0.28632374,698.51,697.45,1.07450111]
[1735528321274,0.28632374,698.51,697.44,1.07450111]
[1735528322479,0.28632374,698.51,697.16,1.62696018]
[1735528322480,0.28632374,698.51,697.47,1.07450111]
[1735528323277,0.28632374,698.51,697.44,1.07450111]
[1735528324480,0.28632374,698.51,697.41,1.07450111]
[1735528325475,0.28632374,698.51,697.63,1.07450111]
[1735528327481,0.28632374,698.51,697.63,2.95496943]
[1735528327687,0.28632374,698.51,697.64,1.87954213]
[1735528327886,0.28632374,698.51,697.62,1.87954213]
[1735528328286,0.28632374,698.51,697.61,1.07450111]
[1735528328782,0.28632374,698.51,697.53,2.69474614]
[1735528328783,0.28632374,698.51,697.63,1.07450111]
[1735528329784,0.28632374,698.51,697.71,1.07450111]
[1735528331188,0.28632374,698.51,697.79,1.07450111]
[1735528332482,0.28632374,698.51,697.74,1.07450111]
[1735528333287,0.28632374,698.51,697.73,1.07450111]
[1735528333885,1.07012201,699.48,697.73,1.07450111]
[1735528334086,0.28593486,699.46,697.73,1.07450111]
[1735528334287,0.26340036,699.45,697.73,1.07450111]
[1735528334487,0.28594712,699.43,697.73,7.26560677]
[1735528334787,0.26340036,699.42,697.74,3.50125917]
[1735528334988,0.28595939,699.4,697.74,3.50125917]
[1735528335189,0.26340036,699.39,697.74,3.50125917]
[1735528335388,0.26340036,699.39,697.79,1.07450111]
[1735528335389,0.28597166,699.37,697.79,1.07450111]
[1735528335584,0.26340036,699.36,697.79,1.07450111]
[1735528335791,0.28598392,699.34,697.79,1.07450111]
[1735528336187,0.26339892,699.33,697.79,1.07450111]
[1735528336392,0.28599619,699.31,697.79,1.07450111]
[1735528337392,0.28599619,699.31,697.76,1.07450111]
[1735528338391,0.28599619,699.31,697.67,1.07450111]
[1735528339492,0.26341077,699.3,697.67,1.07450111]
[1735528339893,0.28600846,699.28,697.65,2.93877395]
[1735528340093,0.28600846,699.28,697.66,1.86427284]
[1735528340298,0.28600846,699.28,697.65,1.07450111]
[1735528340997,0.28600846,699.28,697.64,1.07450111]
[1735528343397,0.28600846,699.28,697.04,1.07450111]
[1735528343598,0.28600846,699.28,697.06,0.28691934]
[1735528344398,0.28600846,699.28,697.07,1.07450111]
[1735528344596,0.28600846,699.28,697.09,0.28690699]
[1735528352504,0.26342083,699.27,697.09,0.28690699]
[1735528352707,0.26342083,699.27,697.16,1.07450111]
[1735528353506,0.28602073,699.25,697.18,0.28686996]
[1735528353706,0.26342083,699.24,697.78,1.07450111]
[1735528353902,0.286033,699.22,697.78,1.07450111]
[1735528354106,0.26343645,699.21,697.78,1.07450111]
[1735528354307,0.28604528,699.19,697.78,1.07450111]
[1735528354508,0.26343645,699.18,697.78,1.07450111]
[1735528355205,0.28605755,699.16,697.78,1.07450111]
[1735528355409,0.26343645,699.15,697.78,1.07450111]
[1735528355710,0.28606982,699.13,697.78,1.07450111]
[1735528356003,0.26343645,699.12,697.78,1.07450111]
[1735528356410,0.26343645,699.12,697.42,2.19377311]
[1735528356411,0.26343645,699.12,697.74,1.07450111]
[1735528356605,0.2860821,699.1,697.74,1.07450111]
[1735528356812,0.26343645,699.09,697.74,1.07450111]
[1735528357208,0.28609438,699.07,697.74,1.07450111]
[1735528357707,0.28609438,699.07,697.5,1.86383135]
[1735528357708,0.28609438,699.07,697.56,1.07450111]
[1735528358709,0.28609438,699.07,697.57,1.07450111]
[1735528360113,0.28609438,699.07,697.49,1.07450111]
[1735528361512,0.26350645,699.06,697.49,1.07450111]
[1735528361807,0.28609438,699.07,697.49,1.07450111]
[1735528362205,0.28609438,699.07,697.47,1.07450111]
[1735528365615,0.28609438,699.07,697.46,1.07450111]
[1735528366909,0.28609438,699.07,697.51,1.07450111]
[1735528368112,0.28609438,699.07,697.52,1.07450111]
[1735528369208,0.28609438,699.07,697.56,1.07450111]
[1735528371317,0.28609438,699.07,697.8,1.07450111]
[1735528373112,0.28609438,699.07,697.79,2.93982882]
[1735528373313,0.28609438,699.07,697.79,1.07450111]
[1735528373915,0.26346459,699.06,697.79,1.07450111]
[1735528374215,0.26346459,699.06,697.53,1.28940133]
[1735528374216,0.28610666,699.04,697.76,1.07450111]
[1735528374516,0.26348835,699.03,697.76,1.07450111]
[1735528374710,0.28611893,699.01,697.76,1.07450111]
[1735528374914,0.26348835,699.0,697.76,1.07450111]
[1735528375113,0.28613121,698.98,697.76,1.07450111]
[1735528375615,0.28613121,698.98,697.68,2.69578824]
[1735528375816,0.28613121,698.98,697.69,3.49419938]
[1735528376317,0.28613121,698.98,697.7,3.49419938]
[1735528376510,0.28613121,698.98,697.71,3.49419938]
[1735528376714,0.28613121,698.98,697.72,3.49419938]
[1735528376916,0.28613121,698.98,697.73,1.86931741]
[1735528377216,0.28613121,698.98,697.67,3.4945338]
[1735528377416,0.28613121,698.98,697.67,7.2654722]
[1735528377617,0.28613121,698.98,697.68,6.19097109]
[1735528377817,0.28613121,698.98,697.69,3.4945338]
[1735528378019,0.28613121,698.98,697.69,6.19097109]
[1735528378217,0.28613121,698.98,697.7,3.4945338]
[1735528378718,0.28613121,698.98,697.71,3.4945338]
[1735528379020,0.28613121,698.98,697.72,3.4945338]
[1735528379317,0.28613121,698.98,697.73,3.4945338]
[1735528379518,0.28613121,698.98,697.74,1.86931741]
[1735528379718,0.28613121,698.98,697.71,3.49468446]
[1735528380315,0.28613121,698.98,697.71,4.56918557]
[1735528380512,0.28613121,698.98,697.72,3.49468446]
[1735528381718,0.28613121,698.98,697.73,1.07450111]
[1735528381917,0.28613121,698.98,697.73,7.26611052]
[1735528382213,0.28613121,698.98,697.74,6.19160941]
[1735528382519,0.28613121,698.98,697.75,6.19160941]
[1735528382718,0.28613121,698.98,697.76,1.86931741]
[1735528382920,0.28613121,698.98,697.81,1.07450111]
[1735528384118,0.28613121,698.98,697.81,2.94381852]
[1735528384317,0.28613121,698.98,697.82,1.86931741]
[1735528384817,0.28613121,698.98,697.81,1.07450111]
[1735528385019,0.28613121,698.98,697.85,1.07450111]
[1735528387320,0.28613121,698.98,697.87,1.07450111]
[1735528388416,0.28613121,698.98,697.78,1.07450111]
[1735528388417,0.28613121,698.98,697.88,1.07450111]
[1735528390714,0.28613121,698.98,697.86,1.07450111]
[1735528393023,0.28613121,698.98,697.85,1.07450111]
[1735528394417,0.28613121,698.98,697.87,1.07450111]
[1735528397626,0.28613121,698.98,697.88,1.07450111]
[1735528398523,0.28613121,698.98,697.9,1.07450111]
[1735528399517,0.28613121,698.98,697.93,1.07450111]
[1735528400718,0.28613121,698.98,697.97,1.07450111]
[1735528401925,0.28613121,698.98,697.96,1.07450111]
[1735528402925,0.28613121,698.98,697.95,1.07450111]
[1735528404127,0.28613121,698.98,697.94,1.07450111]
[1735528404924,0.28613121,698.98,697.99,1.07450111]
[1735528405921,0.28613121,698.98,697.97,1.07450111]
[1735528406726,0.28613121,698.98,697.97,2.94685289]
[1735528406923,0.28613121,698.98,697.98,1.87235178]
[1735528407119,0.28613121,698.98,697.97,1.07450111]
[1735528407120,0.28613121,698.98,697.99,1.07450111]
[1735528408126,0.28613121,698.98,697.97,1.07450111]
[1735528408826,0.28613121,698.98,697.97,2.94685289]
[1735528409025,0.28613121,698.98,697.98,3.49962143]
[1735528409628,0.28613121,698.98,697.99,3.49962143]
[1735528409830,0.28613121,698.98,697.96,1.07450111]
[1735528409831,0.28613121,698.98,698.0,1.87235178]
[1735528410025,0.28613121,698.98,697.97,3.49963938]
[1735528410629,0.28613121,698.98,697.98,1.07450111]
[1735528410826,0.28613121,698.98,697.98,4.57414049]
[1735528411022,0.28613121,698.98,697.99,3.49963938]
[1735528411628,0.28613121,698.98,697.99,4.57414049]
[1735528411830,0.28613121,698.98,698.0,1.87235178]
[1735528412224,0.28613121,698.98,698.0,3.4995987]
[1735528412428,0.28613121,698.98,698.01,1.87235178]
[1735528412625,0.28613121,698.98,698.0,3.49937696]
[1735528412829,0.28613121,698.98,698.0,1.87235178]
[1735528413026,0.28613121,698.98,697.99,1.07450111]
[1735528413733,0.28613121,698.98,697.93,1.07450111]
[1735528414430,0.28613121,698.98,697.97,1.07450111]
[1735528415533,0.28613121,698.98,697.96,1.07450111]
[1735528416436,0.28613121,698.98,697.97,1.07450111]
[1735528418531,0.28613121,698.98,697.98,1.07450111]
[1735528419434,0.28613121,698.98,697.95,1.07450111]
[1735528420533,0.28613121,698.98,697.97,1.07450111]
[1735528422638,0.28613121,698.98,697.95,1.07450111]
[1735528423735,0.28613121,698.98,697.99,1.07450111]
[1735528424939,0.28613121,698.98,698.02,1.07450111]
[1735528426342,0.28613121,698.98,697.93,1.07450111]
[1735528427241,0.28613121,698.98,697.92,1.07450111]
[1735528428341,0.28613121,698.98,697.94,1.07450111]
[1735528429841,0.28613121,698.98,697.5,2.19377311]
[1735528429842,0.28613121,698.98,697.96,1.07450111]
[1735528432342,0.28613121,698.98,697.9,1.07450111]
[1735528433345,0.28613121,698.98,697.91,1.07450111]
[1735528434443,0.28613121,698.98,697.94,1.07450111]
[1735528435439,0.28613121,698.98,697.92,1.07450111]
[1735528436641,0.28613121,698.98,697.97,1.07450111]
[1735528438949,0.28613121,698.98,698.0,1.07450111]
[1735528439847,0.28613121,698.98,695.97,2.91168704]
[1735528439848,0.28613121,698.98,697.98,1.07450111]
[1735528441648,0.28613121,698.98,698.12,1.07450111]
[1735528442647,0.28613121,698.98,698.09,1.07450111]
[1735528443550,0.28613121,698.98,698.06,1.07450111]
[1735528445849,0.28613121,698.98,697.77,3.50062004]
[1735528445850,0.28613121,698.98,698.05,1.07450111]
[1735528446447,0.28613121,698.98,698.06,1.07450111]
[1735528447851,0.28613121,698.98,698.09,1.07450111]
[1735528450053,0.28613121,698.98,698.08,1.07450111]
[1735528451153,0.28613121,698.98,698.06,1.07450111]
[1735528452054,0.28613121,698.98,698.09,1.07450111]
[1735528452857,0.28613121,698.98,698.07,1.07450111]
[1735528454156,0.28613121,698.98,698.15,1.07450111]
[1735528455253,0.28613121,698.98,698.1,1.07450111]
[1735528457256,0.28613121,698.98,698.06,1.07450111]
[1735528459362,0.28613121,698.98,698.04,1.07450111]
[1735528462060,0.28613121,698.98,698.03,1.07450111]
[1735528464067,0.28613121,698.98,698.04,1.07450111]
[1735528465167,0.28613121,698.98,697.97,3.50687108]
[1735528465168,0.28613121,698.98,698.19,1.07450111]
[1735528466768,0.28613121,698.98,698.15,1.07450111]
[1735528467970,0.28613121,698.98,697.99,1.07450111]
[1735528469966,0.28613121,698.98,697.98,1.07450111]
[1735528471373,0.28613121,698.98,697.97,1.07450111]
[1735528472274,0.28613121,698.98,697.98,1.07450111]
[1735528474875,0.28613121,698.98,697.97,1.07450111]
[1735528475871,0.28613121,698.98,697.98,1.07450111]
[1735528476677,0.28613121,698.98,697.87,2.70499966]
[1735528476678,0.28613121,698.98,698.13,1.07450111]
[1735528479169,0.28613121,698.98,698.04,1.07450111]
[1735528479170,0.28613121,698.98,698.14,1.07450111]
[1735528480176,0.28613121,698.98,698.04,1.07450111]
[1735528481475,0.28613121,698.98,697.96,1.87690762]
[1735528481476,0.28613121,698.98,698.02,1.07450111]